[Event "Gibraltar Challengers B 2020"]
[Site "Caleta"]
[Date "2020.01.26"]
[Round "2.37"]
[White "Fabregas, Oliver"]
[Black "Tkadlecek, Petr"]
[Result "1-0"]
[ECO "A07"]
[WhiteElo "1951"]
[BlackElo "1775"]
[Annotator "NA"]
[PlyCount "109"]
[EventDate "2020.01.20"]
[EventType "swiss"]
[EventCountry "GGB"]
[SourceTitle "playchess.com"]
[Source "ChessBase"]
[SourceQuality "1"]
[TimeControl "6600+10"]

1. Nf3 {[%emt 0:00:00]} Nf6 {[%emt 0:00:14]} 2. g3 {[%emt 0:00:00]} d5 {[%emt 0:00:24]} 3. Bg2 {[%emt 0:00:44]} c6 {[%emt 0:00:33]} 4. b3 {[%emt 0:00:23]} g6 {[%emt 0:01:03]} 5. Bb2 {[%emt 0:00:09]} Bg7 {[%emt 0:00:17]} 6. d3 {[%emt 0:00:31]} O-O {[%emt 0:00:40]} 7. O-O {[%emt 0:00:12]} Re8 {[%emt 0:01:39]} 8. Nbd2 {[%emt 0:00:53]} Nbd7 {[%emt 0:01:07]} 9. e4 {[%emt 0:02:46] A07: Réti Opening: New York and Capablanca Systems} (9. Re1 $11) 9... dxe4 {[%emt 0:03:42]} 10. dxe4 {[%emt 0:00:33]} e5 {[%emt 0:01:17]} (10... Nxe4 $15 11. Bxg7 Nxd2 12. Qxd2 Kxg7) 11. Qe2 {[%emt 0:02:04]} (11. Re1 b5 12. a4 Qc7 13. Qe2 a6 14. Red1 Nc5 15. Ne1 Bg4 16. Bf3 Be6 17. Nd3 Nfd7 18. Nxc5 Nxc5 19. Ba3 Bf8 20. Qe3 Nd7 21. Bxf8 Rxf8 {½-½ (58) Muthaiah,A (2420)-Amonatov,F (2624) Mumbai 2019}) 11... Qc7 {[%emt 0:00:35]} 12. Rfd1 {[%emt 0:04:10]} a5 {[%emt 0:00:32]} 13. a4 {[%emt 0:01:27]} b6 {[%emt 0:01:01]} 14. h3 {[%emt 0:07:36]} Ba6 {[%emt 0:01:11]} 15. Qe3 {[%emt 0:00:35]} Rac8 $146 {[%emt 0:03:51]} ({Predecessor:} 15... Rad8) 16. Rac1 {[%emt 0:06:52]} Bf8 {[%emt 0:01:24]} 17. c4 {[%emt 0:03:00]} Bc5 {[%emt 0:01:02]} 18. Qe2 {[%emt 0:00:16]} Bf8 {[%emt 0:01:46]} 19. Kh2 {[%emt 0:01:59]} Bh6 {[%emt 0:00:42]} 20. Rc2 {[%emt 0:01:23]} Bb7 {[%emt 0:02:49]} 21. Ba3 {[%emt 0:08:46]} c5 {[%emt 0:01:56]} 22. Ne1 {[%emt 0:01:22]} Nf8 {[%emt 0:02:05]} 23. Bb2 {[%emt 0:02:09]} Ne6 {[%emt 0:01:36]} 24. Nd3 {[%emt 0:01:04]} Nd4 {[%emt 0:02:50]} 25. Bxd4 {[%emt 0:00:16]} exd4 {[%emt 0:00:43]} ({Better is} 25... cxd4 $17 26. h4 Qd8) 26. f4 {[%emt 0:03:45]} Re7 {[%emt 0:03:38]} 27. e5 {[%emt 0:04:05]} Rce8 {[%emt 0:05:09]} 28. Qf2 {[%emt 0:02:57]} Nd7 {[%emt 0:00:54] [#]} 29. Bd5 $16 {[%emt 0:04:08]} Bg7 {[%emt 0:03:32]} 30. Qf3 {[%emt 0:05:13]} Bc8 {[%emt 0:02:45]} 31. Ne4 {[%emt 0:01:40]} Nf8 {[%emt 0:07:19]} 32. Re2 {[%emt 0:04:46]} Bd7 {[%emt 0:06:18]} 33. Rde1 {[%emt 0:01:27]} Rd8 {[%emt 0:02:38]} 34. Kg2 {[%emt 0:01:00]} Be6 {[%emt 0:03:26]} 35. Nd6 {[%emt 0:03:23]} Qd7 {[%emt 0:02:19]} 36. g4 {[%emt 0:01:19]} h6 {[%emt 0:05:45]} 37. Bc6 {[%emt 0:03:49]} Qc7 {[%emt 0:01:48]} 38. Nb5 {[%emt 0:00:36]} Qc8 {[%emt 0:01:25]} 39. Rf1 {[%emt 0:02:44]} f6 {[%emt 0:03:44]} 40. f5 {[%emt 0:08:06]} gxf5 {[%emt 0:01:42]} 41. gxf5 {[%emt 0:00:31]} Bf7 {[%emt 0:02:10]} 42. e6 {[%emt 0:02:05]} Be8 {[%emt 0:00:39]} 43. Be4 {[%emt 0:01:19]} Nh7 {[%emt 0:03:23]} 44. h4 {[%emt 0:00:36]} Bf8 {[%emt 0:02:12]} 45. Nf4 {[%emt 0:00:52]} Rg7+ {[%emt 0:01:43]} 46. Kh1 {[%emt 0:00:21]} Bxb5 {[%emt 0:02:47]} 47. axb5 {[%emt 0:00:20]} Ra7 {[%emt 0:03:46]} 48. Rg1+ {[%emt 0:00:47]} Bg7 {[%emt 0:01:02]} 49. Bd5 {[%emt 0:02:40]} Re7 {[%emt 0:06:16]} 50. Reg2 {[%emt 0:01:59]} Qc7 {[%emt 0:03:06]} 51. Rxg7+ {[%emt 0:02:26]} Rxg7 {[%emt 0:01:53]} 52. e7+ {[%emt 0:00:12]} Kh8 {[%emt 0:01:09]} 53. exd8=Q+ {[%emt 0:01:07]} Qxd8 {[%emt 0:00:02]} 54. Rxg7 {[%emt 0:00:20]} Kxg7 {[%emt 0:00:07]} 55. Ne6+ {[%emt 0:00:04]} 1-0

[Event "Gibraltar Challengers B 2020"]
[Site "Caleta"]
[Date "2020.01.26"]
[Round "2.38"]
[White "Kunnavakkam, Sudarshanagopal Vin"]
[Black "Mao, Yingzhou"]
[Result "0-1"]
[ECO "B21"]
[WhiteElo "1786"]
[BlackElo "1948"]
[Annotator "NA"]
[PlyCount "80"]
[EventDate "2020.01.20"]
[EventType "swiss"]
[EventCountry "GGB"]
[SourceTitle "playchess.com"]
[Source "ChessBase"]
[SourceQuality "1"]
[TimeControl "6600+10"]

1. e4 {[%emt 0:01:43]} c5 {[%emt 0:00:00]} 2. d4 {[%emt 0:00:48]} cxd4 {[%emt 0:00:13]} 3. c3 {[%emt 0:00:07]} dxc3 {[%emt 0:00:30]} 4. Nxc3 {[%emt 0:00:32]} Nc6 {[%emt 0:00:45]} 5. Bc4 {[%emt 0:00:56]} e6 {[%emt 0:00:37]} 6. Nf3 {[%emt 0:00:50]} a6 {[%emt 0:00:54]} 7. Qe2 {[%emt 0:01:56]} b5 {[%emt 0:04:17]} 8. Bb3 {[%emt 0:00:19]} Na5 {[%emt 0:01:56]} 9. Bc2 {[%emt 0:01:46]} Bb7 {[%emt 0:01:01]} 10. O-O {[%emt 0:03:20]} Nf6 {[%emt 0:16:23]} 11. e5 {[%emt 0:06:50]} Nd5 {[%emt 0:02:09]} 12. Ne4 {[%emt 0:00:23]} h6 {[%emt 0:03:32]} 13. a3 {[%emt 0:00:42]} Be7 {[%emt 0:00:59]} (13... Rc8 $17 14. a4 Nb4) 14. Qd3 {[%emt 0:01:33]} Qc7 {[%emt 0:02:08]} 15. b3 {[%emt 0:03:38]} Rc8 {[%emt 0:12:19]} 16. Bb1 {[%emt 0:03:10]} b4 {[%emt 0:06:18]} 17. Bd2 {[%emt 0:15:18]} bxa3 $17 {[%emt 0:11:22]} 18. Nd6+ {[%emt 0:01:50]} Bxd6 {[%emt 0:03:01]} 19. exd6 {[%emt 0:00:02]} Qb6 {[%emt 0:04:01]} 20. Rxa3 {[%emt 0:00:57]} Nc6 {[%emt 0:00:12]} 21. Re1 {[%emt 0:02:09]} Ncb4 {[%emt 0:01:11]} 22. Qe4 {[%emt 0:01:14]} Qxd6 {[%emt 0:02:08]} 23. Ra4 {[%emt 0:07:33]} Nc6 {[%emt 0:00:24]} 24. Qg4 {[%emt 0:02:57]} g5 {[%emt 0:04:53]} 25. Qh3 {[%emt 0:03:50]} Ke7 {[%emt 0:01:26]} 26. Nd4 {[%emt 0:05:30]} Nxd4 {[%emt 0:03:10]} 27. Rxd4 {[%emt 0:00:03]} Qb6 {[%emt 0:00:43]} 28. Qd3 {[%emt 0:01:29]} Qb5 {[%emt 0:01:32]} 29. Qg3 {[%emt 0:01:00]} Bc6 {[%emt 0:05:06]} 30. h4 {[%emt 0:01:32]} Rcg8 {[%emt 0:01:13]} 31. hxg5 {[%emt 0:04:47]} hxg5 {[%emt 0:00:05]} 32. Bd3 {[%emt 0:02:47]} Qb6 {[%emt 0:01:55]} 33. Bb4+ {[%emt 0:06:15]} Kd8 {[%emt 0:02:37]} 34. Qd6 {[%emt 0:00:21]} Qc7 {[%emt 0:00:34]} 35. Bxa6 {[%emt 0:04:26]} Nxb4 {[%emt 0:00:25]} 36. Qxb4 {[%emt 0:05:01]} Rh2 {[%emt 0:04:55]} 37. Rg4 {[%emt 0:05:28]} Rgh8 {[%emt 0:01:08]} 38. Kf1 {[%emt 0:00:07]} Rh1+ {[%emt 0:00:07]} 39. Ke2 {[%emt 0:00:03]} Qe5+ {[%emt 0:00:22]} 40. Kd1 {[%emt 0:00:07]} Qa1+ {[%emt 0:00:49]} 0-1

[Event "Gibraltar Challengers B 2020"]
[Site "Caleta"]
[Date "2020.01.26"]
[Round "2.39"]
[White "Maldonado Mena, German"]
[Black "Lee, Alexandre Km"]
[Result "1-0"]
[ECO "E71"]
[WhiteElo "1946"]
[BlackElo "1557"]
[Annotator "NA"]
[PlyCount "109"]
[EventDate "2020.01.20"]
[EventType "swiss"]
[EventCountry "GGB"]
[SourceTitle "playchess.com"]
[Source "ChessBase"]
[SourceQuality "1"]
[TimeControl "6600+10"]

1. d4 {[%emt 0:00:00]} Nf6 {[%emt 0:00:10]} 2. c4 {[%emt 0:00:02]} g6 {[%emt 0:00:39]} 3. Nc3 {[%emt 0:00:07]} Bg7 {[%emt 0:00:20]} 4. e4 {[%emt 0:00:09]} d6 {[%emt 0:00:31]} 5. h3 {[%emt 0:00:07]} O-O {[%emt 0:00:42]} 6. Be3 {[%emt 0:00:08]} e5 {[%emt 0:00:29]} 7. d5 {[%emt 0:00:09]} Qe8 {[%emt 0:01:20] E71: King's Indian: 4 e4 d6 5 h3} 8. g4 {[%emt 0:02:34]} a5 {[%emt 0:01:08]} 9. Qd2 $146 {[%emt 0:00:18]} ({Predecessor:} 9. Nge2 $16 Na6 10. Ng3 c6 11. g5 Nd7 12. dxc6 bxc6 13. Qxd6 f5 14. gxf6 Rxf6 15. Qd2 {0-1 (30) Karpov,A (2670)-Anand,V (2801) Moscow 2007}) 9... Na6 {[%emt 0:01:31]} 10. Nge2 {[%emt 0:00:10]} Nd7 {[%emt 0:00:54]} ({Black should play} 10... Nxe4 $14 11. Nxe4 f5) 11. Ng3 {[%emt 0:00:23]} Ndc5 {[%emt 0:00:39]} 12. Be2 {[%emt 0:02:13]} Nb4 {[%emt 0:01:22]} 13. h4 {[%emt 0:04:37]} b6 {[%emt 0:01:59]} 14. h5 {[%emt 0:00:50]} Bd7 {[%emt 0:01:56]} 15. Rb1 {[%emt 0:04:37]} Nba6 {[%emt 0:07:35]} 16. Bh6 {[%emt 0:07:26]} Bxh6 {[%emt 0:07:58]} 17. Qxh6 {[%emt 0:00:09]} Qe7 {[%emt 0:01:28]} 18. Kd2 {[%emt 0:03:20]} g5 {[%emt 0:08:41]} 19. Nd1 {[%emt 0:04:14]} f6 {[%emt 0:07:43]} 20. Ne3 {[%emt 0:00:17]} Qg7 $16 {[%emt 0:02:03]} (20... Qe8 $15) 21. Nef5 {[%emt 0:05:16]} Qxh6 {[%emt 0:03:00]} 22. Nxh6+ {[%emt 0:00:07]} Kh8 {[%emt 0:02:08]} 23. f3 {[%emt 0:01:31]} Rfb8 {[%emt 0:11:25]} 24. b3 {[%emt 0:01:45]} b5 {[%emt 0:02:41]} 25. cxb5 {[%emt 0:00:58]} Bxb5 {[%emt 0:00:24]} 26. Bxb5 {[%emt 0:00:52]} Rxb5 {[%emt 0:00:07]} 27. Ngf5 {[%emt 0:01:15]} Rab8 {[%emt 0:03:33]} 28. Rbc1 {[%emt 0:05:21]} a4 {[%emt 0:02:44]} 29. bxa4 {[%emt 0:00:29]} Nxa4 {[%emt 0:02:48]} 30. Rc2 {[%emt 0:01:11]} N6c5 {[%emt 0:02:11]} 31. Ne7 {[%emt 0:01:21]} Rb2 {[%emt 0:02:23]} 32. Rhc1 {[%emt 0:01:00]} R2b5 {[%emt 0:02:34]} 33. Nhf5 {[%emt 0:00:39]} Nb6 {[%emt 0:01:10]} 34. h6 {[%emt 0:02:10]} Nbd7 {[%emt 0:04:47]} 35. Nc6 {[%emt 0:00:43]} Ra8 {[%emt 0:00:34]} 36. Nfe7 {[%emt 0:01:31]} Rb6 {[%emt 0:01:29]} 37. Ke3 {[%emt 0:01:27]} Nf8 {[%emt 0:01:47]} 38. Rc3 {[%emt 0:01:52]} Ng6 {[%emt 0:00:46]} 39. a3 {[%emt 0:13:10]} Nxe7 {[%emt 0:01:29]} 40. Nxe7 {[%emt 0:00:10]} Re8 {[%emt 0:00:26]} 41. Nf5 {[%emt 0:00:47]} Kg8 {[%emt 0:00:33]} 42. Rxc5 {[%emt 0:05:41]} dxc5 {[%emt 0:01:31]} 43. Rxc5 {[%emt 0:00:07]} Rb3+ {[%emt 0:00:44]} 44. Kf2 {[%emt 0:00:12]} Rb7 {[%emt 0:01:27]} 45. d6 {[%emt 0:03:25]} cxd6 {[%emt 0:00:38]} 46. Nxd6 {[%emt 0:00:07]} Rb2+ {[%emt 0:00:05]} 47. Kg3 {[%emt 0:00:06]} Ra8 {[%emt 0:00:22]} 48. Rc7 {[%emt 0:00:15]} Rd8 {[%emt 0:02:06]} 49. Rg7+ {[%emt 0:01:34]} Kf8 {[%emt 0:00:17]} 50. Nc4 {[%emt 0:00:50]} Rc2 {[%emt 0:01:16]} 51. Rxh7 {[%emt 0:00:29]} Kg8 {[%emt 0:00:54]} 52. Rg7+ {[%emt 0:00:15]} Kf8 {[%emt 0:00:15]} 53. Ne3 {[%emt 0:00:21]} Re2 {[%emt 0:00:40]} 54. Nd5 {[%emt 0:02:31]} Rd6 {[%emt 0:01:01]} 55. Rc7 {[%emt 0:03:07]} 1-0

[Event "Gibraltar Challengers B 2020"]
[Site "Caleta"]
[Date "2020.01.26"]
[Round "2.40"]
[White "Lafour, Jephte"]
[Black "Garcia Rodriguez, Inaki"]
[Result "0-1"]
[ECO "C44"]
[WhiteElo "1690"]
[BlackElo "1944"]
[Annotator "NA"]
[PlyCount "108"]
[EventDate "2020.01.20"]
[EventType "swiss"]
[EventCountry "GGB"]
[SourceTitle "playchess.com"]
[Source "ChessBase"]
[SourceQuality "1"]
[TimeControl "6600+10"]

1. e4 {[%emt 0:00:03]} e5 {[%emt 0:00:00]} 2. Nf3 {[%emt 0:00:07]} Nf6 {[%emt 0:00:09]} 3. d3 {[%emt 0:00:10]} Nc6 {[%emt 0:00:40]} 4. g3 {[%emt 0:00:17]} d5 {[%emt 0:02:16]} 5. Nbd2 {[%emt 0:00:11]} dxe4 {[%emt 0:01:04]} 6. dxe4 {[%emt 0:00:10]} Bg4 {[%emt 0:00:23]} 7. Bg2 {[%emt 0:00:39]} Qd7 {[%emt 0:02:49]} 8. O-O {[%emt 0:00:38]} O-O-O {[%emt 0:00:25]} 9. c3 {[%emt 0:00:33]} Nxe4 {[%emt 0:01:58]} 10. Qa4 {[%emt 0:00:34]} Nc5 {[%emt 0:00:36]} 11. Qb5 {[%emt 0:01:38]} a6 {[%emt 0:01:41]} 12. Qe2 {[%emt 0:02:28]} f5 {[%emt 0:03:50]} 13. Qe3 {[%emt 0:00:50]} e4 {[%emt 0:01:17]} 14. Ne1 {[%emt 0:01:02]} Nd3 {[%emt 0:01:34]} (14... h5 $19 15. Nb3 Qd5) 15. Nxd3 {[%emt 0:01:56]} Qxd3 {[%emt 0:00:11]} 16. Qxd3 {[%emt 0:04:39]} Rxd3 {[%emt 0:00:14]} 17. f3 {[%emt 0:00:21]} (17. Nc4 $17) 17... e3 $2 {[%emt 0:03:40]} (17... Bc5+ $19 18. Kh1 e3) 18. Nb3 $17 {[%emt 0:00:37]} e2 {[%emt 0:01:24]} 19. Re1 {[%emt 0:02:30]} Bxf3 {[%emt 0:01:43]} 20. Bxf3 {[%emt 0:00:59]} Rxf3 {[%emt 0:00:08]} 21. Rxe2 {[%emt 0:00:09]} Bd6 {[%emt 0:00:40]} 22. Kg2 {[%emt 0:01:02]} Rd3 {[%emt 0:00:29]} 23. Bd2 {[%emt 0:01:36]} Rd8 {[%emt 0:00:37]} 24. Rae1 {[%emt 0:00:56]} h6 {[%emt 0:06:06]} 25. Be3 {[%emt 0:00:37]} g5 {[%emt 0:01:27]} 26. Nc1 {[%emt 0:01:15]} Rd5 {[%emt 0:00:42]} 27. c4 {[%emt 0:01:59]} Ra5 {[%emt 0:02:21]} 28. a3 {[%emt 0:00:26]} f4 {[%emt 0:00:43]} 29. Bd2 {[%emt 0:00:51]} Rf5 {[%emt 0:00:26]} 30. g4 {[%emt 0:05:09]} Rf7 {[%emt 0:01:23]} 31. Re8 {[%emt 0:02:17]} Rxe8 {[%emt 0:02:34]} 32. Rxe8+ {[%emt 0:00:11]} Kd7 {[%emt 0:00:06]} 33. Re4 {[%emt 0:00:57]} f3+ {[%emt 0:00:44]} 34. Kf2 {[%emt 0:00:37]} Bxh2 {[%emt 0:00:32]} 35. Nd3 {[%emt 0:00:55]} Bd6 {[%emt 0:01:29]} 36. b4 {[%emt 0:00:08]} b5 {[%emt 0:03:05]} 37. c5 {[%emt 0:01:05]} Bf8 {[%emt 0:00:28]} 38. Ne1 {[%emt 0:00:30]} Bg7 {[%emt 0:00:16]} 39. Nd3 {[%emt 0:02:26]} Bd4+ {[%emt 0:06:57]} 40. Kf1 {[%emt 0:00:28]} Re7 {[%emt 0:00:54]} 41. Rxe7+ {[%emt 0:01:59]} Kxe7 {[%emt 0:00:08]} 42. Be1 {[%emt 0:00:08]} Ke6 {[%emt 0:00:23]} 43. Bf2 {[%emt 0:00:46]} Kd5 {[%emt 0:00:21]} 44. Ne1 {[%emt 0:00:15]} Ke4 {[%emt 0:01:10]} 45. Bg3 {[%emt 0:00:18]} Be5 {[%emt 0:00:36]} 46. Bf2 {[%emt 0:00:12]} Bf4 {[%emt 0:00:58]} 47. Nc2 {[%emt 0:00:36]} Ne5 {[%emt 0:00:46]} 48. Nd4 {[%emt 0:00:24]} Nxg4 {[%emt 0:00:26]} 49. Ne6 {[%emt 0:00:04]} Be3 {[%emt 0:01:48]} 50. Bg3 {[%emt 0:00:10]} f2 {[%emt 0:01:04]} 51. Nxc7 {[%emt 0:00:12]} Kf3 {[%emt 0:00:11]} 52. Nd5 {[%emt 0:02:00]} Kxg3 {[%emt 0:00:21]} 53. c6 {[%emt 0:00:13]} Kf3 {[%emt 0:00:21]} 54. c7 {[%emt 0:00:17]} Nh2# {[%emt 0:00:09]} 0-1

[Event "Gibraltar Challengers B 2020"]
[Site "Caleta"]
[Date "2020.01.26"]
[Round "2.43"]
[White "Hng, Mei-Xian Eunice"]
[Black "Fischer, Robert"]
[Result "1-0"]
[ECO "C21"]
[WhiteElo "1661"]
[BlackElo "1923"]
[Annotator "NA"]
[PlyCount "59"]
[EventDate "2020.01.20"]
[EventType "swiss"]
[EventCountry "GGB"]
[SourceTitle "playchess.com"]
[Source "ChessBase"]
[SourceQuality "1"]
[TimeControl "6600+10"]

1. e4 {[%emt 0:00:00]} e5 {[%emt 0:00:00]} 2. d4 {[%emt 0:00:10]} exd4 {[%emt 0:00:06]} 3. c3 {[%emt 0:00:09]} Qe7 {[%emt 0:01:32]} 4. cxd4 {[%emt 0:00:39]} Qxe4+ {[%emt 0:01:49]} 5. Be3 {[%emt 0:00:20]} Bb4+ {[%emt 0:01:33]} 6. Nc3 {[%emt 0:00:55]} Nf6 {[%emt 0:00:22]} 7. Qd2 {[%emt 0:02:10]} Qc6 {[%emt 0:04:22]} 8. Rc1 {[%emt 0:13:45]} O-O {[%emt 0:00:50]} 9. a3 {[%emt 0:04:56]} Ne4 {[%emt 0:02:12]} 10. Qd3 {[%emt 0:03:11]} Bxc3+ $1 {[%emt 0:00:46]} 11. bxc3 $17 {[%emt 0:00:21]} d5 {[%emt 0:00:48]} 12. Nf3 {[%emt 0:05:25]} Bf5 {[%emt 0:02:26]} 13. Nh4 {[%emt 0:03:17]} Be6 {[%emt 0:02:48]} 14. Qc2 {[%emt 0:02:56]} Nd7 {[%emt 0:03:32]} 15. Bd3 {[%emt 0:01:40]} Rfe8 {[%emt 0:05:18]} 16. O-O {[%emt 0:02:54]} Nf8 {[%emt 0:05:38]} 17. c4 {[%emt 0:03:59]} Nd6 {[%emt 0:06:56]} 18. c5 {[%emt 0:14:12]} Nc4 {[%emt 0:02:11]} 19. Qb3 {[%emt 0:03:46]} b5 {[%emt 0:02:59]} 20. Nf3 {[%emt 0:02:57]} Ng6 {[%emt 0:03:33]} 21. Ng5 {[%emt 0:03:16]} Bd7 {[%emt 0:05:22]} 22. Rfe1 {[%emt 0:01:19]} Qf6 {[%emt 0:03:34]} 23. Nf3 {[%emt 0:04:32]} Nf4 {[%emt 0:09:32]} 24. Bb1 {[%emt 0:03:37]} Bg4 {[%emt 0:00:49]} 25. Ne5 {[%emt 0:05:33]} Ne2+ {[%emt 0:02:46]} 26. Rxe2 {[%emt 0:01:57]} Bxe2 {[%emt 0:00:03]} 27. Qc2 {[%emt 0:01:15]} Nxe3 {[%emt 0:02:57]} 28. Qxh7+ {[%emt 0:00:51]} Kf8 {[%emt 0:01:03]} 29. Nd7+ {[%emt 0:00:18]} Ke7 {[%emt 0:00:55]} 30. Nxf6 {[%emt 0:00:18]} 1-0

[Event "Gibraltar Challengers B 2020"]
[Site "Caleta"]
[Date "2020.01.27"]
[Round "3.14"]
[White "Osuna Vega, Enrique"]
[Black "Patola, Eero"]
[Result "1-0"]
[ECO "B01"]
[WhiteElo "2129"]
[BlackElo "1831"]
[Annotator "RC"]
[PlyCount "133"]
[EventDate "2020.01.20"]
[EventType "swiss"]
[EventCountry "GGB"]
[SourceTitle "playchess.com"]
[Source "ChessBase"]
[SourceQuality "1"]
[TimeControl "6600+10"]

1. e4 {[%emt 0:06:39]} d5 {[%emt 0:00:02]} 2. exd5 {[%emt 0:00:05]} Nf6 {[%emt 0:00:09]} 3. d4 {[%emt 0:00:30]} Nxd5 {[%emt 0:00:19]} 4. c4 {[%emt 0:00:24]} Nb6 {[%emt 0:00:18]} 5. Nf3 {[%emt 0:00:24]} Bg4 {[%emt 0:00:34]} 6. c5 {[%emt 0:00:23]} Nd5 {[%emt 0:00:55]} 7. Qb3 {[%emt 0:00:47]} Bc8 {[%emt 0:02:06]} 8. Nc3 {[%emt 0:04:34]} c6 {[%emt 0:01:35]} 9. Bg5 {[%emt 0:04:44]} Nf6 {[%emt 0:06:10]} 10. Bc4 {[%emt 0:02:01]} e6 {[%emt 0:00:49]} 11. O-O {[%emt 0:06:36]} Be7 {[%emt 0:01:24]} 12. Qc2 {[%emt 0:01:09]} h6 {[%emt 0:00:39]} 13. Bh4 {[%emt 0:01:36]} O-O {[%emt 0:00:51]} 14. Rad1 {[%emt 0:01:02]} Nd5 {[%emt 0:01:14]} 15. Bxe7 {[%emt 0:02:50]} Qxe7 {[%emt 0:01:08]} 16. Rfe1 {[%emt 0:06:35]} Qd8 {[%emt 0:02:54]} 17. a3 {[%emt 0:01:57]} Nd7 {[%emt 0:00:39]} 18. Ba2 {[%emt 0:04:28]} N7f6 {[%emt 0:02:42]} 19. Bb1 {[%emt 0:00:15]} Ne7 {[%emt 0:07:53]} 20. Ne4 {[%emt 0:03:51]} Ng6 {[%emt 0:03:25]} 21. Ne5 {[%emt 0:03:54]} Qc7 {[%emt 0:08:05]} 22. Nxf6+ {[%emt 0:03:51]} gxf6 {[%emt 0:00:40]} 23. Nxg6 {[%emt 0:00:25]} fxg6 {[%emt 0:00:18]} 24. Qxg6+ {[%emt 0:00:08]} Qg7 {[%emt 0:00:09]} 25. Qe4 {[%emt 0:03:25]} f5 {[%emt 0:02:22]} 26. Qe5 {[%emt 0:04:16]} Qxe5 {[%emt 0:02:12]} 27. dxe5 {[%emt 0:00:28]} Kf7 {[%emt 0:01:51]} 28. Rd6 {[%emt 0:00:37]} a5 {[%emt 0:01:30]} 29. b3 {[%emt 0:01:17]} Ke7 {[%emt 0:00:35]} 30. Red1 {[%emt 0:00:09]} Rb8 {[%emt 0:01:48]} 31. Bc2 {[%emt 0:01:55]} Re8 {[%emt 0:05:43]} 32. f4 {[%emt 0:00:23]} Rg8 {[%emt 0:01:53]} 33. R1d4 {[%emt 0:00:43]} Ra8 {[%emt 0:01:02]} 34. Kf2 {[%emt 0:01:21]} Ra6 {[%emt 0:00:55]} 35. Bd3 {[%emt 0:01:37]} Ra8 {[%emt 0:00:14]} 36. g3 {[%emt 0:00:18]} Rb8 {[%emt 0:00:30]} 37. Ra4 {[%emt 0:03:23]} Ra8 {[%emt 0:01:17]} 38. Rad4 {[%emt 0:00:22]} Rb8 {[%emt 0:00:27]} 39. Be2 {[%emt 0:00:08]} Ra8 {[%emt 0:03:26]} 40. Kg2 {[%emt 0:00:18]} b6 {[%emt 0:00:52]} 41. cxb6 {[%emt 0:04:21]} c5 {[%emt 0:00:14]} 42. Bf3 {[%emt 0:07:22]} Rb8 {[%emt 0:04:05]} 43. Ra4 {[%emt 0:01:22]} Rd8 {[%emt 0:00:43]} 44. Rxd8 {[%emt 0:02:35]} Kxd8 {[%emt 0:00:06]} 45. Be2 {[%emt 0:08:06]} Rxb6 {[%emt 0:00:55]} 46. Bc4 {[%emt 0:00:11]} Bb7+ {[%emt 0:01:04]} 47. Kh3 {[%emt 0:00:24]} Ba6 {[%emt 0:05:06]} 48. Rxa5 {[%emt 0:00:36]} Bxc4 {[%emt 0:00:42]} 49. bxc4 {[%emt 0:00:02]} Rb3 {[%emt 0:00:37]} 50. Rxc5 {[%emt 0:00:36]} Rxa3 {[%emt 0:00:17]} 51. Kh4 {[%emt 0:00:43]} Ra2 {[%emt 0:00:29]} 52. h3 {[%emt 0:00:08]} Ra3 {[%emt 0:02:13]} 53. Rc6 {[%emt 0:01:23]} Kd7 {[%emt 0:00:25]} 54. Rd6+ {[%emt 0:00:09]} Ke7 {[%emt 0:00:28]} 55. g4 {[%emt 0:02:10]} Rf3 {[%emt 0:00:16]} 56. Rd4 {[%emt 0:00:09]} fxg4 {[%emt 0:01:27]} 57. hxg4 {[%emt 0:00:43]} Kf7 {[%emt 0:00:37]} 58. Rd7+ {[%emt 0:02:21]} Kg6 {[%emt 0:00:40]} 59. Re7 {[%emt 0:00:39]} Rxf4 {[%emt 0:00:32]} 60. Rxe6+ {[%emt 0:00:06]} Kg7 {[%emt 0:00:49]} 61. c5 {[%emt 0:00:20]} Rc4 {[%emt 0:00:41]} 62. c6 {[%emt 0:00:13]} Rc5 {[%emt 0:00:37]} 63. Kg3 {[%emt 0:01:22]} Rc4 {[%emt 0:02:23]} 64. Kf3 {[%emt 0:00:47]} Kh7 {[%emt 0:02:10]} 65. Rd6 {[%emt 0:00:06]} Kg7 {[%emt 0:00:50]} 66. Rd7+ {[%emt 0:01:28]} Kf8 {[%emt 0:00:42]} 67. c7 {[%emt 0:00:06]} 1-0

[Event "Gibraltar Challengers B 2020"]
[Site "Caleta"]
[Date "2020.01.27"]
[Round "3.19"]
[White "Fabregas, Oliver"]
[Black "Gonzalez Gonzalez, Alfonso"]
[Result "0-1"]
[ECO "B28"]
[WhiteElo "1951"]
[BlackElo "2100"]
[Annotator "ChessBase"]
[PlyCount "72"]
[EventDate "2020.01.20"]
[EventType "swiss"]
[EventCountry "GGB"]
[SourceTitle "playchess.com"]
[Source "ChessBase"]
[SourceQuality "1"]
[TimeControl "6600+10"]

1. e4 {[%emt 0:00:00]} c5 {[%emt 0:04:45]} 2. Nf3 {[%emt 0:00:04]} a6 {[%emt 0:00:03]} 3. d3 {[%emt 0:00:15]} g6 {[%emt 0:03:51]} 4. g3 {[%emt 0:00:06]} Bg7 {[%emt 0:00:02]} 5. Bg2 {[%emt 0:00:08]} Nc6 {[%emt 0:01:11]} 6. O-O {[%emt 0:00:17]} Nf6 {[%emt 0:00:49]} 7. c3 {[%emt 0:00:56]} O-O {[%emt 0:00:32]} 8. Nbd2 {[%emt 0:01:42]} d6 {[%emt 0:04:25]} 9. a3 {[%emt 0:01:57]} b5 {[%emt 0:01:59]} 10. h3 {[%emt 0:13:06]} Bb7 {[%emt 0:00:52]} 11. Ne1 {[%emt 0:07:23]} d5 {[%emt 0:01:11]} 12. Qe2 {[%emt 0:02:19]} e5 {[%emt 0:09:51]} 13. exd5 {[%emt 0:03:21]} Nxd5 {[%emt 0:00:08]} 14. Ne4 {[%emt 0:02:56]} Qe7 {[%emt 0:02:16]} 15. Bg5 {[%emt 0:02:26]} f6 {[%emt 0:00:09]} 16. Be3 {[%emt 0:01:35]} Nxe3 {[%emt 0:00:57]} 17. Qxe3 {[%emt 0:00:12]} c4 {[%emt 0:08:31]} 18. dxc4 {[%emt 0:04:35]} bxc4 {[%emt 0:00:41]} 19. Qc5 {[%emt 0:00:52]} Rab8 {[%emt 0:02:28]} 20. Qxc4+ {[%emt 0:04:48]} Kh8 {[%emt 0:00:15]} 21. b4 {[%emt 0:02:26]} f5 {[%emt 0:01:04]} 22. Nc5 {[%emt 0:01:09]} e4 {[%emt 0:00:12]} 23. Nc2 {[%emt 0:02:44]} Ne5 {[%emt 0:00:38]} 24. Qe6 {[%emt 0:04:40]} Qxe6 {[%emt 0:00:40]} 25. Nxe6 {[%emt 0:00:02]} Rfc8 {[%emt 0:00:11]} 26. Nc5 {[%emt 0:04:35]} Nd3 {[%emt 0:00:51]} 27. Nxb7 {[%emt 0:11:39]} Rxc3 {[%emt 0:00:54]} 28. Ra2 {[%emt 0:03:05]} Rxb7 {[%emt 0:00:08]} 29. Ne3 {[%emt 0:02:33]} Bd4 {[%emt 0:01:50]} 30. g4 {[%emt 0:04:43]} Nxf2 {[%emt 0:02:03]} 31. Nc2 {[%emt 0:09:26]} Nxh3+ {[%emt 0:01:24]} 32. Kh2 {[%emt 0:00:19]} Be5+ {[%emt 0:00:09]} 33. Kh1 {[%emt 0:00:19]} Nf4 {[%emt 0:00:55]} 34. gxf5 {[%emt 0:02:54]} gxf5 {[%emt 0:00:15]} 35. Re1 {[%emt 0:03:49]} Nxg2 {[%emt 0:00:59]} 36. Kxg2 {[%emt 0:00:07]} Rg7+ {[%emt 0:00:05]} 0-1